Workbook

Sheet Sheet1
A1: 附件2
A2: 中央和省级困难群众救助补助资金及衔接推进乡村振兴补助资金（农村低保五保兜底保障资金）区域绩效目标表
A4: 地区 | B4: 资金下达（万元） | K4: 产出指标 | AB4: 效益指标 | AF4: 满意度指标
B5: 小计 | E5: 中央 | H5: 省级（含2024年117万） | K5: 数量指标 | P5: 质量指标 | Z5: 时效指标 | AB5: 社会效益指标 | AF5: 服务对象满意度 指标
B6: 应下达 | C6: 已下达 | D6: 此次 下达 | E6: 应下达 | F6: 已下达 | G6: 此次 下达 | H6: 应下达 | I6: 已下达 | J6: 此次 下达 | K6: 低保对象人数 | L6: 临时救助人次 | M6: 求助的流浪乞讨人员救助率 | N6: 孤儿、艾滋病毒感染儿童、生活困难家庭中的和纳入特困人员救助供养范围的事实无人抚养儿童纳入保障范围率 | O6: 残疾人两项补贴人数 | P6: 城市低保标准（元/人.月） | Q6: 农村低保标准（元/人.年） | R6: 城市特困人员救助供养标准（元/人.月 | S6: 农村特困人员救助供养标准（元/人.月 | T6: 临时救助水平 | U6: 困难残疾人生活补贴标准（元/人.月） | V6: 重度残疾人护理补贴标准（元/人.月） | W6: 建立社会救助家庭经济状况核对机制的县（市、区）比例（%） | X6: 符合条件且自愿申请入住养老机构的困难失能老人等群体当年纳入集中照护保障范围（函纳入轮候机制） | Y6: 孤儿、艾滋病毒感染儿童、事实无人抚养儿童认定准确率 | Z6: 困难群众基本生活救助金和孤儿基本生活费按时发放率（%） | AA6: 救助管理机构救助人员情况当日录入全国救助管理信息系统率（%） | AB6: 困难群众生活水平情况 | AC6: 帮助查明身份滞留流浪乞讨人员返乡情况 | AD6: 为自愿前来救助站或由公安等部门护送至救助站的传销解救人员、打拐解救人员、家暴受害者等提供临时救助服务率（%） | AE6: 困难失能老年人等群体基本养老服务救助政策在当地的知晓率 | AF6: 救助对象对社会救助实施的满意度 | AG6: 基本养老服务救助补助对象对集中照护政策实施的满意度
A7: 市本级 | B7: =E7+H7 -> 2219 | C7: =SUM(C8:C11) -> 1753 | D7: 466 | E7: 1542 | F7: 1249 | G7: 293 | H7: =SUM(I7:J7) -> 677 | I7: =SUM(I8:I11) -> 504 | J7: =SUM(J8:J11) -> 173 | K7: 应保尽保 | L7: 应救尽救 | M7: 应救尽保 | N7: 应保尽保 | O7: 应补尽补 | P7: ≥642 | Q7: ≥7404 | R7: ≥1285 | S7: ≥1125 | T7: 按要求合理确定 | U7: 100 | V7: 100 | W7: ≥95% | X7: 应纳 尽纳 | Y7: 不低于上年 | Z7: ≥90% | AA7: ≥95% | AB7: 有所提升 | AC7: 及时送返 | AD7: ≥95% | AE7: ≥95% | AF7: ≥90% | AG7: ≥90%
A8: 其中：随州市 | B8: =E8+H8 -> 197 | C8: =F8+I8 -> 197 | D8: =G8+J8 -> 0 | E8: =SUM(F8:G8) -> 197 | F8: 197 | G8: 0 | H8: =SUM(I8:J8) -> 0 | I8: 0 | J8: 0 | K8: 应保尽保 | L8: 应救尽救 | M8: 应救尽保 | N8: 应保尽保 | O8: 应补尽补 | P8: ≥642 | Q8: ≥7404 | R8: ≥1285 | S8: ≥1125 | T8: 按要求合理确定 | U8: 100 | V8: 100 | W8: ≥95% | X8: 应纳 尽纳 | Y8: 不低于上年 | Z8: ≥90% | AA8: ≥95% | AB8: 有所提升 | AC8: 及时送返 | AD8: ≥95% | AE8: ≥95% | AF8: ≥90% | AG8: ≥90%
A9: 曾都区 （淅河镇） | B9: =E9+H9 -> 1308 | C9: =F9+I9 -> 999 | D9: =G9+J9 -> 309 | E9: =SUM(F9:G9) -> 911 | F9: 713 | G9: 198 | H9: =SUM(I9:J9) -> 397 | I9: 286 | J9: 111 | K9: 应保尽保 | L9: 应救尽救 | M9: 应救尽保 | N9: 应保尽保 | O9: 应补尽补 | P9: ≥642 | Q9: ≥7404 | R9: ≥1285 | S9: ≥1125 | T9: 按要求合理确定 | U9: 100 | V9: 100 | W9: ≥95% | X9: 应纳 尽纳 | Y9: 不低于上年 | Z9: ≥90% | AA9: ≥95% | AB9: 有所提升 | AC9: 及时送返 | AD9: ≥95% | AE9: ≥95% | AF9: ≥90% | AG9: ≥90%
A10: 随州市 高新区 | B10: =E10+H10 -> 624 | C10: =F10+I10 -> 476 | D10: =G10+J10 -> 148 | E10: =SUM(F10:G10) -> 434 | F10: 339 | G10: 95 | H10: =SUM(I10:J10) -> 190 | I10: 137 | J10: 53 | K10: 应保尽保 | L10: 应救尽救 | M10: 应救尽保 | N10: 应保尽保 | O10: 应补尽补 | P10: ≥642 | Q10: ≥7404 | R10: ≥1285 | S10: ≥1125 | T10: 按要求合理确定 | U10: 100 | V10: 100 | W10: ≥95% | X10: 应纳 尽纳 | Y10: 不低于上年 | Z10: ≥90% | AA10: ≥95% | AB10: 有所提升 | AC10: 及时送返 | AD10: ≥95% | AE10: ≥95% | AF10: ≥90% | AG10: ≥90%
A11: 随县 （长岗镇） | B11: =E11+H11 -> 90 | C11: =F11+I11 -> 81 | D11: =G11+J11 -> 9 | E11: =SUM(F11:G11) -> 0 | F11: 0 | G11: 0 | H11: =SUM(I11:J11) -> 90 | I11: 81 | J11: 9 | K11: 应保尽保 | L11: 应救尽救 | M11: 应救尽保 | N11: 应保尽保 | O11: 应补尽补 | P11: ≥595 | Q11: ≥7116 | R11: ≥1190 | S11: ≥1080 | T11: 按要求合理确定 | U11: 100 | V11: 100 | W11: ≥95% | X11: 应纳 尽纳 | Y11: 不低于上年 | Z11: ≥90% | AA11: ≥95% | AB11: 有所提升 | AC11: 及时送返 | AD11: ≥95% | AE11: ≥95% | AF11: ≥90% | AG11: ≥90%

Sheet Sheet2

Sheet Sheet3
